Workbook

Sheet Total
A1: Nom | B1: Total | G1: Dimention | H1: Meuble | I1: Cuve | J1: Decante
A2: Meuble | B2: =meuble!E21 -> 0 | G2: L | H2: 1800 | I2: 2000 | J2: 1500
A3: Cuve | B3: =Cuve!E21 -> 0 | G3: l | H3: 700 | I3: 800 | J3: 800
A4: Tuyauterie | B4: =Tuyauterie!E21 -> 0 | G4: H | H4: 1000 | I4: 700 | J4: 800
A5: Electricité | B5: =Electricité!E21 -> 0 | L5: Changement d'eau | M5: kg de sel
A6: Eclairages | B6: =Eclairages!E21 -> 0 | I6: =(I2*I3*I4)/1000000 -> 1120 | J6: =(J2*J3*J4)/1000000 -> 960 | K6: =I6+J6 -> 2080 | L6: =K6*0.1 -> 208 | M6: =L6*0.035 -> 7.28
A7: ElectroAqua | B7: =electroAqua!E21 -> 0
A8: Substrat + Pvs | B8: ='substrat + PVs'!E21 -> 1832.98
A9: sels+eau | B9: ='Sels+eau'!E21 -> 124.3
A15: Total | B15: =SUM(B2:B7) -> 0 | C15: Prix redsea | D15: 6500
A16: Total avec pierre | B16: =SUM(B2:B9) -> 1957.28 | C16: diff redsea | D16: =D15-SUM(B2:B7) -> 6500

Sheet meuble
A1: Matériels | B1: Ref | C1: PU | D1: Nombre | E1: total | F1: Remarques | G1: Site | H1: Date D'achat
A2: Peinture | E2: =D2*C2 -> 0
A3: Contreplaqué | E3: 0
A4: structue alu | E4: 0
A5: mousse | E5: 0 | G5: https://www.artapisserie.fr/mousse-sur-resille/1625-mousse-contact-sur-resille-de-5mm.html
E6: 0
E7: 0
E8: 0
E9: 0
E10: 0
E11: 0
E12: 0
E13: 0
E14: 0
E15: 0
E16: 0
E17: 0
E18: 0
E19: 0
E20: 0
D21: Total | E21: =SUM(E2:E20) -> 0

Sheet Cuve
A1: Matériels | B1: Ref | C1: PU | D1: Nombre | E1: total | F1: Remarques | G1: Site | H1: Date D'achat
A2: Cuve aquarium | B2: 12mm | E2: =D2*C2 -> 0
A3: Cuve decante | E3: 0
A4: cuve changement | E4: 0
E5: 0
E6: 0
E7: 0
E8: 0
E9: 0
E10: 0
E11: 0
E12: 0
E13: 0
E14: 0
E15: 0
E16: 0
E17: 0
E18: 0
E19: 0
E20: 0
D21: Total | E21: =SUM(E2:E20) -> 0

Sheet Tuyauterie
A1: Matériels | B1: Ref | C1: PU | D1: Nombre | E1: total | F1: Remarques | G1: Site | H1: Date D'achat
E2: =D2*C2 -> 0
E3: 0
E4: 0
E5: 0
E6: 0
E7: 0
E8: 0
E9: 0
E10: 0
E11: 0
E12: 0
E13: 0
E14: 0
E15: 0
E16: 0
E17: 0
E18: 0
E19: 0
E20: 0
D21: Total | E21: =SUM(E2:E20) -> 0

Sheet electroAqua
A1: Matériels | B1: Ref | C1: PU | D1: Nombre | E1: total | F1: Remarques | G1: Site | H1: Date D'achat
A2: Pompe de brassage | E2: =D2*C2 -> 0
A3: Chauffage | E3: 0
A4: Ecumeur | E4: 0
A5: Pompe de remonté | E5: 0
E6: 0
E7: 0
E8: 0
E9: 0
E10: 0
E11: 0
E12: 0
E13: 0
E14: 0
E15: 0
E16: 0
E17: 0
E18: 0
E19: 0
E20: 0
D21: Total | E21: =SUM(E2:E20) -> 0

Sheet Electricité
A1: Matériels | B1: Ref | C1: PU | D1: Nombre | E1: total | F1: Remarques | G1: Site | H1: Date D'achat
E2: =D2*C2 -> 0
E3: 0
E4: 0
E5: 0
E6: 0
E7: 0
E8: 0
E9: 0
E10: 0
E11: 0
E12: 0
E13: 0
E14: 0
E15: 0
E16: 0
E17: 0
E18: 0
E19: 0
E20: 0
D21: Total | E21: =SUM(E2:E20) -> 0

Sheet Eclairages
A1: Matériels | B1: Ref | C1: PU | D1: Nombre | E1: total | F1: Remarques | G1: Site | H1: Date D'achat
A2: Leds | E2: =D2*C2 -> 0
A3: Regle aluminium | E3: 0
A4: Alimentation 12V | E4: 0
A5: PCB | E5: 0
A6: Resistance | E6: 0
E7: 0
E8: 0
E9: 0
E10: 0
E11: 0
E12: 0
E13: 0
E14: 0
E15: 0
E16: 0
E17: 0
E18: 0
E19: 0
E20: 0
D21: Total | E21: =SUM(E2:E20) -> 0

Sheet substrat + PVs
A1: Matériels | B1: Ref | C1: PU | D1: Nombre | E1: total | F1: Remarques | G1: Site | H1: Date D'achat
A2: PV vivant | B2: 50% de 90 KG | C2: 29.9 | D2: 45 | E2: =D2*C2 -> 1345.5 | G2: Marinehome
A3: PV morte | B3: 50% de 90 KG | C3: 9.9 | D3: 45 | E3: 445.5 | G3: Marinehome
A4: sable | B4: bali bali 0,5mm 1,2mm | C4: 20.99 | D4: 2 | E4: 41.98 | G4: Marinehome
E5: 0
E6: 0
E7: 0
E8: 0
E9: 0
E10: 0
E11: 0
E12: 0
E13: 0
E14: 0
E15: 0
E16: 0
E17: 0
E18: 0
E19: 0
E20: 0
D21: Total | E21: =SUM(E2:E20) -> 1832.98

Sheet Sels+eau
A1: Matériels | B1: Ref | C1: PU | D1: Nombre | E1: total | F1: Remarques | G1: Site | H1: Date D'achat
A2: Sel | C2: 2.2 | D2: 31.5 | E2: =C2*D2 -> 69.3 | F2: 35g/L => 1025 200L=> 7Kg | G2: Marine home
A3: osmoseur | C3: 55 | D3: 1 | E3: =D3*C3 -> 55 | F3: 380L jour | G3: Aqua-store
E4: 0
E5: 0
E6: 0
E7: 0
E8: 0
E9: 0
E10: 0
E11: 0
E12: 0
E13: 0
E14: 0
E15: 0
E16: 0
E17: 0
E18: 0
E19: 0
E20: 0
D21: Total | E21: =SUM(E2:E20) -> 124.3
